bitfinex-derivatives/quotes_ETHF0:USTF0_20241018
["timestamp","ask_amount","ask_price","bid_price","bid_amount"]
[1729250046365,0.80155,2633.3,2633.2,0.37986]
[1729250046761,2.17155,2633.3,2633.2,0.37986]
[1729250046967,2.17155,2633.3,2633.1,2.1899]
[1729250047264,2.17155,2633.3,2633.2,0.37986]
[1729250047464,0.37986,2633.2,2633.1,2.56976]
[1729250048464,2.17155,2633.3,2633.1,2.56976]
[1729250048768,2.17155,2633.3,2633.2,1.74986]
[1729250048769,0.80154,2633.3,2633.2,1.74986]
[1729250049775,0.80154,2633.3,2633.2,1.37]
[1729250050367,0.80154,2633.3,2633.2,1.74986]
[1729250050874,0.80154,2633.3,2633.2,0.37986]
[1729250051763,0.4217,2633.3,2633.2,1.74986]
[1729250052167,3.6241,2633.5,2633.2,1.37]
[1729250052365,0.3889,2633.6,2633.4,1.37]
[1729250052566,0.7687,2633.6,2633.5,2.16101]
[1729250052867,0.3889,2633.6,2633.5,2.16101]
[1729250053471,0.7687,2633.6,2633.5,2.16101]
[1729250053666,0.3889,2633.6,2633.5,2.16101]
[1729250054470,0.8483,2633.8,2633.7,0.37978]
[1729250054674,1.22807,2633.8,2633.7,1.74978]
[1729250055074,0.8483,2633.8,2633.7,1.74978]
[1729250055373,0.8483,2633.8,2633.5,0.8044]
[1729250055374,0.37979,2633.7,2633.6,0.3798]
[1729250055573,1.74979,2633.7,2633.5,2.55421]
[1729250055774,0.8033,2633.6,2633.5,2.1744]
[1729250055971,2.1733,2633.6,2633.4,1.37]
[1729250056166,0.37984,2633.3,2633.2,0.99197898]
[1729250056370,1.37,2633.3,2633.0,2.78477898]
[1729250056567,0.37987,2633.1,2633.0,2.17268]
[1729250059975,1.37,2633.1,2633.0,1.37]
[1729250060172,1.74987,2633.1,2633.0,1.37]
[1729250061370,1.37,2633.1,2632.9,1.37]
[1729250061576,0.37992,2632.8,2632.7,0.37992]
[1729250061771,1.74991,2632.9,2632.8,1.74991]
[1729250061977,1.74991,2632.9,2632.8,1.37]
[1729250062574,1.74991,2632.9,2632.5,3.2078]
[1729250062575,1.37,2632.9,2632.5,3.2078]
[1729250062777,5.8131,2633.2,2632.5,4.95776]
[1729250062778,1.74994,2632.6,2632.5,4.95776]
[1729250063378,0.37994,2632.6,2632.5,4.95776]
[1729250063775,0.37993,2632.7,2632.5,4.5778]
[1729250063976,0.37993,2632.7,2632.6,1.37]
[1729250064182,0.37993,2632.7,2632.6,2.17284]
[1729250064381,1.60742,2632.8,2632.6,1.7929]
[1729250064581,1.60742,2632.8,2632.7,1.37]
[1729250067298,1.20952,2632.8,2632.7,1.37]
[1729250067584,1.20952,2632.8,2632.7,1.74993]
[1729250067772,1.20952,2632.8,2632.7,1.37]
[1729250069278,1.20952,2632.8,2632.7,1.74993]
[1729250069474,0.8296,2632.8,2632.7,1.74993]
[1729250069674,0.37989,2633.0,2632.9,0.37989]
[1729250069884,0.80819,2633.0,2632.9,1.7499]
[1729250070481,0.4283,2633.0,2632.9,1.7499]
[1729250070690,0.4283,2633.0,2632.9,2.175]
[1729250071276,0.8248,2633.1,2632.9,2.175]
[1729250071277,0.4085,2633.1,2633.0,0.37988]
[1729250071585,0.4085,2633.1,2633.0,2.17898]
[1729250072882,3.2078,2633.9,2633.0,8.629544]
[1729250073081,3.2078,2633.9,2633.5,1.37]
[1729250073082,0.37981,2633.6,2633.5,1.37]
[1729250073679,0.79161,2633.6,2633.5,1.74981]
[1729250073885,0.4118,2633.6,2633.5,1.74981]
[1729250074977,0.7916,2633.6,2633.5,1.37]
[1729250076584,2.1616,2633.6,2633.5,1.37]
[1729250076787,0.37983,2633.4,2633.2,0.4029]
[1729250076988,0.37984,2633.4,2633.3,1.37]
[1729250077389,0.78664,2633.4,2633.3,1.37]
[1729250080183,0.78664,2633.4,2633.3,1.74984]
[1729250080891,0.4068,2633.4,2633.3,1.74984]
[1729250081190,0.77519,2633.7,2633.5,0.3798]
[1729250081384,0.77519,2633.7,2633.6,1.37]
[1729250081687,0.77519,2633.7,2633.6,1.7713]
[1729250081883,2.14519,2633.7,2633.6,1.7713]
[1729250083993,2.14519,2633.7,2633.5,0.3798]
[1729250083994,1.7654,2633.7,2633.5,1.37]
[1729250084288,1.37,2633.6,2633.4,1.37]
[1729250084493,1.37,2633.6,2633.4,1.74981]
[1729250084989,0.37983,2633.4,2633.3,1.37]
[1729250085187,1.74983,2633.4,2633.3,1.37]
[1729250085489,0.77393,2633.4,2633.3,1.74984]
[1729250086181,0.77393,2633.4,2633.3,1.37]
[1729250087492,2.14393,2633.4,2633.3,1.37]
[1729250087678,0.3941,2633.4,2633.3,1.37]
[1729250087883,0.77393,2633.4,2633.3,1.74984]
[1729250088283,0.3941,2633.4,2633.3,1.74984]
[1729250088682,0.77393,2633.4,2633.3,1.74984]
[1729250089093,0.3941,2633.4,2633.3,1.74984]
[1729250090487,0.77393,2633.4,2633.3,1.74984]
[1729250090686,0.3941,2633.4,2633.3,1.74984]
[1729250091883,0.77393,2633.4,2633.3,1.74984]
[1729250092388,0.3941,2633.4,2633.3,1.74984]
[1729250093204,0.77393,2633.4,2633.3,1.74984]
[1729250093490,0.3941,2633.4,2633.3,1.74984]
[1729250093895,3.98299,2633.7,2633.6,0.3798]
[1729250094092,3.98299,2633.7,2633.5,1.37]
[1729250094093,4.9732,2633.7,2633.5,1.37]
[1729250094289,0.428,2633.6,2633.5,0.3798]
[1729250094799,3.6032,2633.7,2633.6,0.3798]
[1729250095097,3.6032,2633.7,2633.6,1.7498]
[1729250095494,3.98298,2633.7,2633.6,1.7498]
[1729250095799,3.6032,2633.7,2633.6,1.7498]
[1729250096000,3.98298,2633.7,2633.6,1.37]
[1729250096295,3.6032,2633.7,2633.6,1.37]
[1729250096595,3.98298,2633.7,2633.6,1.7498]
[1729250096791,3.6032,2633.7,2633.6,1.7498]
[1729250097297,3.98298,2633.7,2633.6,1.37]
[1729250097488,3.6032,2633.7,2633.6,1.7498]
[1729250098100,3.6032,2633.7,2633.6,1.37]
[1729250098303,3.6032,2633.7,2633.6,1.7498]
[1729250098606,3.98298,2633.7,2633.6,1.7498]
[1729250099100,3.6032,2633.7,2633.6,1.7498]
[1729250100622,3.6032,2633.7,2633.6,1.37]
[1729250100908,3.6032,2633.7,2633.6,1.7498]
[1729250101308,3.2078,2633.7,2633.6,1.7498]
[1729250101505,3.2078,2633.7,2633.6,5.5466]
[1729250101802,3.2078,2633.7,2633.6,1.7498]
[1729250102102,3.2078,2633.7,2633.6,0.3798]
[1729250102303,4.44408,2633.7,2633.6,0.3798]
[1729250102499,4.0643,2633.7,2633.6,1.7498]
[1729250102702,3.2078,2633.7,2633.6,1.7498]
[1729250103799,0.37976,2633.9,2633.8,0.37977]
[1729250104010,0.37976,2633.9,2633.8,1.74977]
[1729250104507,3.58755,2634.0,2633.9,0.37975]
[1729250104703,3.58755,2634.0,2633.9,1.37]
[1729250105108,3.58755,2634.0,2633.9,1.74975]
[1729250106011,0.8554,2634.2,2633.9,1.37]
[1729250106324,0.8554,2634.2,2634.1,1.74973]
[1729250106501,1.23511,2634.2,2634.1,1.74973]
[1729250106701,1.23511,2634.2,2634.1,2.14373]
[1729250106899,1.23511,2634.2,2634.1,1.764]
[1729250107098,1.23511,2634.2,2634.1,2.14373]
[1729250107304,2.2254,2634.2,2633.8,0.3941]
[1729250107508,0.37975,2634.0,2633.9,1.37]
[1729250107707,0.37975,2634.0,2633.9,1.74975]
[1729250107907,0.37975,2634.0,2633.9,1.37]
[1729250108512,0.37975,2634.0,2633.9,1.74975]
[1729250108815,0.37975,2634.0,2633.9,1.37]
[1729250109013,0.37975,2634.0,2633.9,1.74975]
[1729250109811,0.37975,2634.0,2633.9,1.37]
[1729250110212,0.37975,2634.0,2633.5,0.3948]
[1729250110213,9.7446,2634.0,2633.3,3.2078]
[1729250110404,9.7446,2634.0,2633.0,1.98847676]
[1729250110405,4.5778,2633.4,2633.0,1.37]
[1729250110716,1.37,2633.1,2632.9,1.37]
[1729250110906,1.37,2633.0,2632.6,1.2243]
[1729250111110,1.74989,2633.0,2632.9,1.7499]
[1729250111319,1.37,2633.2,2632.9,1.37]
[1729250111509,0.37987,2633.1,2633.0,1.37]
[1729250113112,1.2309,2633.3,2633.1,0.37987]
[1729250113314,3.2078,2633.4,2633.3,0.37984]
[1729250113623,0.37983,2633.4,2633.3,1.37]
[1729250114207,0.37981,2633.6,2633.4,0.37983]
[1729250114511,0.837,2633.7,2633.5,1.37]
[1729250114715,0.837,2633.7,2633.2,0.7966]
[1729250114716,0.837,2633.7,2633.6,1.37]
[1729250115042,1.21678,2633.7,2633.6,1.37]
[1729250115614,0.3798,2633.6,2633.5,1.37]
[1729250115815,6.0038,2633.7,2633.3,0.37983]
[1729250115816,0.37981,2633.5,2633.3,0.37983]
[1729250116015,0.837,2633.7,2633.2,4.13645]
[1729250116016,0.37983,2633.4,2633.2,4.13645]
[1729250116218,0.37983,2633.4,2633.2,0.78755]
[1729250116420,0.4108,2633.3,2633.2,0.4077]
[1729250116620,0.37987,2633.1,2632.9,0.4119]
[1729250116925,0.37987,2633.1,2632.7,6.1678]
[1729250116926,0.4062,2633.2,2632.8,1.15921]
[1729250117125,0.4062,2633.2,2632.8,0.7793]
[1729250117323,0.4062,2633.2,2632.9,0.37989]
[1729250117616,0.4062,2633.2,2632.8,0.7793]
[1729250117823,0.37989,2633.0,2632.9,0.37989]
[1729250118023,0.4062,2633.2,2632.9,0.37989]
[1729250118024,0.37988,2633.1,2632.9,0.37989]
[1729250118322,0.37989,2633.0,2632.9,0.3799]
[1729250118522,0.37988,2633.1,2632.9,0.3799]
[1729250118714,0.4062,2633.2,2632.8,0.7793]
[1729250119025,0.37991,2632.8,2632.7,3.2078]
[1729250123014,0.37996,2632.5,2632.4,0.37997]
[1729250123320,0.405,2632.7,2632.2,1.1995]
[1729250123517,0.405,2632.7,2632.2,1.57948]
[1729250123518,0.37997,2632.4,2632.2,1.57948]
[1729250124025,0.37997,2632.4,2632.3,0.37998]
[1729250124431,0.405,2632.7,2632.2,0.3884]
[1729250124432,0.37998,2632.3,2632.2,0.3884]
[1729250124621,0.37998,2632.3,2632.2,0.7684]
[1729250125122,0.405,2632.7,2631.9,0.77703]
[1729250125123,0.38001,2632.1,2631.9,0.77703]
[1729250125314,6.1678,2632.5,2631.9,0.4267]
[1729250125519,0.38002,2632.1,2631.9,0.80674]
[1729250125823,0.38001,2632.2,2632.0,0.38002]
[1729250126120,0.8382,2632.4,2631.9,0.80674]
[1729250126121,0.38003,2632.0,2631.9,0.80674]
[1729250126315,0.38004,2631.9,2631.8,3.2078]
[1729250127221,0.38005,2631.9,2631.7,0.38006]
[1729250127519,0.38005,2631.9,2631.5,4.4117]
[1729250127720,0.38005,2631.9,2631.8,0.38006]
[1729250128119,0.38005,2631.9,2631.5,4.4117]
[1729250128321,0.38005,2631.9,2631.7,0.38006]
[1729250128521,3.2078,2632.1,2631.7,0.38006]
[1729250128727,0.38006,2631.9,2631.7,0.38006]
[1729250128930,0.38005,2631.9,2631.7,0.38006]
[1729250130929,0.38005,2631.9,2631.5,4.4117]
[1729250131333,0.38005,2631.9,2631.8,0.38006]
[1729250134636,0.38007,2631.7,2631.6,0.38008]
[1729250135531,0.8454,2631.8,2631.5,4.0102]
[1729250135727,0.38009,2631.6,2631.5,3.615]
[1729250135934,3.6074,2631.7,2631.3,0.38012]
[1729250136140,0.38011,2631.4,2631.2,3.777]
[1729250136339,3.6074,2631.7,2631.3,0.38012]
[1729250136636,3.6074,2631.7,2631.2,0.817]
[1729250136637,0.38013,2631.4,2631.2,0.817]
[1729250136937,0.38011,2631.5,2631.4,0.38011]
[1729250137934,0.38011,2631.5,2631.2,3.777]
[1729250138233,0.38011,2631.5,2631.4,0.38011]
[1729250139035,0.3801,2631.6,2631.2,3.777]
[1729250139234,0.3801,2631.6,2631.5,0.3801]
[1729250140234,0.38009,2631.6,2631.4,0.3801]
[1729250140423,3.6074,2631.7,2631.4,0.3801]
[1729250140631,0.3801,2631.6,2631.5,0.3801]
[1729250140831,0.95014,2631.9,2631.5,0.3801]
[1729250140832,3.2078,2632.0,2631.5,2.96]
[1729250141138,3.2078,2632.0,2631.6,0.4041]
[1729250141139,0.38006,2631.8,2631.6,0.4041]
[1729250141337,0.38006,2631.8,2631.7,0.4171]
[1729250141737,0.38006,2631.8,2631.7,0.79717]
[1729250142533,3.2078,2632.0,2631.7,0.79717]
[1729250142734,0.38006,2631.8,2631.7,0.79717]
[1729250146348,3.6046,2632.1,2631.7,0.4171]
[1729250146646,3.6046,2632.1,2631.9,0.38003]
[1729250146647,0.38003,2632.0,2631.9,0.38003]
[1729250147237,3.6046,2632.1,2631.7,3.7749]
[1729250147434,0.38004,2631.9,2631.8,0.38006]
[1729250148943,0.38004,2632.0,2631.9,0.38004]
[1729250149244,3.2078,2632.4,2631.9,2.96]
[1729250149448,1.096,2632.7,2632.1,0.38001]
[1729250149449,0.38,2632.2,2632.1,0.38001]
[1729250150532,0.38001,2632.1,2632.0,0.81022]
[1729250150733,0.38001,2632.1,2631.7,3.7749]
[1729250150734,0.38004,2632.0,2631.9,0.38003]
[1729250152539,0.38004,2632.0,2631.9,0.38004]
[1729250153349,0.94993,2632.4,2631.9,0.38004]
[1729250153534,0.38003,2632.1,2631.8,3.6351]
[1729250153848,0.3943,2632.0,2631.9,0.38004]
[1729250154341,0.77433,2632.0,2631.9,0.38004]
[1729250154545,0.3943,2632.0,2631.9,0.38004]
[1729250155043,1.16493,2632.0,2631.9,0.38004]
[1729250155239,1.16493,2632.0,2631.8,3.6351]
[1729250155240,0.7849,2632.0,2631.8,3.6351]
[1729250155444,0.38004,2631.9,2631.8,4.01514]
[1729250155949,0.78454,2631.9,2631.8,3.58784]
[1729250156242,0.38008,2631.7,2631.6,0.38008]
[1729250156838,0.38006,2631.8,2631.7,0.38006]
[1729250159847,0.38007,2631.7,2631.6,3.34008]
[1729250160545,0.38007,2631.7,2631.6,0.38008]
[1729250160944,0.38009,2631.6,2631.5,0.38009]
[1729250161143,1.20579,2631.6,2631.5,0.38009]
[1729250161342,0.8257,2631.6,2631.5,0.38009]
[1729250161848,1.20579,2631.6,2631.5,0.38009]
[1729250162151,0.8257,2631.6,2631.5,0.38009]
[1729250162746,0.3801,2631.5,2631.4,3.34011]
[1729250162939,0.4183,2631.5,2631.3,4.62926205]
[1729250163135,0.38011,2631.4,2631.3,4.01572]
[1729250163338,0.4183,2631.5,2631.4,0.38011]
[1729250163339,0.79841,2631.5,2631.4,0.38011]
[1729250163847,0.79841,2631.5,2631.3,3.6356]
[1729250163848,0.4183,2631.5,2631.3,3.6356]
[1729250164048,0.38011,2631.4,2631.3,4.01572]
[1729250165349,0.79841,2631.5,2631.4,0.38011]
[1729250166045,0.38011,2631.4,2631.3,3.58793]
[1729250167744,0.79841,2631.5,2631.4,0.38011]
[1729250167950,0.79841,2631.5,2631.3,3.2078]
[1729250167951,0.38011,2631.4,2631.3,3.58792]
[1729250168344,0.79841,2631.5,2631.4,0.38011]
[1729250168548,0.79841,2631.5,2631.4,3.34011]
[1729250168943,0.79841,2631.5,2631.4,2.96]
[1729250169449,0.79841,2631.5,2631.4,3.34011]
[1729250169950,0.79841,2631.5,2631.4,2.96]
[1729250170143,0.79841,2631.5,2631.4,3.34011]
[1729250172749,0.79841,2631.5,2631.4,5.87506409]
[1729250174251,0.79841,2631.5,2631.4,6.37096693]
[1729250174460,0.79841,2631.5,2631.4,5.87507088]
[1729250175048,0.79841,2631.5,2631.4,5.8749639]
[1729250175250,0.4183,2631.5,2631.4,5.8749639]
[1729250175453,0.4183,2631.5,2631.4,5.87481295]
[1729250175653,0.7984,2631.5,2631.4,5.87481295]
[1729250175960,0.7984,2631.5,2631.4,4.28481295]
[1729250176259,0.38006,2631.8,2631.7,0.38006]
[1729250176459,0.38006,2631.8,2631.7,1.75006]
[1729250177345,0.77606,2631.8,2631.7,1.75006]
[1729250181160,0.396,2631.8,2631.7,1.75006]
[1729250182660,0.4128,2632.0,2631.7,1.37]
[1729250182866,0.79284,2632.0,2631.9,1.75004]
[1729250183066,0.799,2632.1,2631.9,1.37]
[1729250183268,0.799,2632.1,2631.8,0.3926]
[1729250183269,0.799,2632.1,2632.0,1.75003]
[1729250183857,0.77359,2632.3,2632.2,0.38]
[1729250184063,0.4264,2632.3,2632.2,1.75]
[1729250184757,0.80638,2632.3,2632.2,1.75]
[1729250185268,3.2078,2632.4,2632.3,0.37998]
[1729250185565,3.2078,2632.4,2632.3,1.74998]
[1729250185769,3.2078,2632.4,2632.3,3.34998]
[1729250186159,3.2078,2632.4,2632.3,3.75708]
[1729250187270,3.2078,2632.4,2632.3,0.78708]
[1729250189367,3.58777,2632.4,2632.3,0.78708]
[1729250189565,3.2078,2632.4,2632.3,0.78708]
[1729250190665,3.58777,2632.4,2632.3,0.78708]
[1729250190871,3.58777,2632.4,2632.3,0.37998]
[1729250191069,3.2078,2632.4,2632.2,3.3943]
[1729250191269,0.8518,2632.6,2632.2,3.3943]
[1729250191270,0.80298,2632.3,2632.2,3.35]
[1729250191767,0.423,2632.3,2632.2,3.35]
[1729250192568,0.8518,2632.6,2632.5,0.37996]
[1729250192764,0.8518,2632.6,2632.5,3.34996]
[1729250192765,0.4243,2632.6,2632.5,3.34996]
[1729250193169,0.4243,2632.6,2632.5,0.37996]
[1729250201873,0.4243,2632.6,2632.4,3.3736]
[1729250202178,0.80426,2632.6,2632.5,0.37996]
[1729250205878,0.80426,2632.6,2632.5,1.74996]
[1729250206180,0.80426,2632.6,2632.5,1.37]
[1729250207376,0.80426,2632.6,2632.5,1.74996]
[1729250209077,0.80426,2632.6,2632.5,1.37]
[1729250209379,0.80426,2632.6,2632.5,1.74996]
[1729250212788,1.21836,2632.6,2632.5,1.74996]
[1729250214893,1.21836,2632.6,2632.5,1.37]
[1729250215484,1.21836,2632.6,2632.5,1.74996]
[1729250220303,0.4243,2632.6,2632.5,1.74996]
[1729250221908,0.4266,2632.7,2632.6,0.37994]
[1729250222108,0.4266,2632.7,2632.6,1.74994]
[1729250222307,0.4266,2632.7,2632.6,0.37994]
[1729250222512,0.4266,2632.7,2632.6,1.74994]
[1729250222704,0.4266,2632.7,2632.5,1.37]
[1729250222907,0.80654,2632.7,2632.6,1.74994]
[1729250224207,0.4266,2632.7,2632.6,1.74994]
[1729250224504,0.80653,2632.7,2632.6,1.74994]
[1729250225306,0.4266,2632.7,2632.6,1.74994]
[1729250225902,0.4266,2632.7,2632.6,2.15734]
[1729250226205,0.4266,2632.7,2632.6,3.14957002]
[1729250226610,0.80653,2632.7,2632.6,3.14957002]
[1729250226909,0.4266,2632.7,2632.6,3.14957002]
[1729250227110,0.80653,2632.7,2632.6,1.39963002]
[1729250227299,1.7966,2632.7,2632.5,0.99223002]
[1729250227505,1.74994,2632.6,2632.5,0.99223002]
[1729250227700,1.74994,2632.6,2632.5,2.52923161]
[1729250227907,1.74994,2632.6,2632.5,3.89923161]
[1729250228108,1.74994,2632.6,2632.5,4.27919161]
[1729250228911,1.74994,2632.6,2632.5,3.89923161]
[1729250229107,1.74994,2632.6,2632.5,2.36223002]
[1729250229409,1.74994,2632.6,2632.5,4.2792811]
[1729250230406,1.74994,2632.6,2632.5,4.27925143]
[1729250230608,1.74994,2632.6,2632.5,3.89929143]
[1729250230808,1.74994,2632.6,2632.5,2.36223002]
[1729250231217,0.37994,2632.6,2632.5,2.36223002]
[1729250231914,0.37994,2632.6,2632.5,2.74219002]
[1729250232611,0.38,2632.2,2632.1,0.3939]
[1729250232918,0.38,2632.2,2632.1,0.77391]
[1729250232919,1.37,2632.2,2632.1,0.77391]
[1729250233106,0.37999,2632.3,2632.1,0.77391]
[1729250233107,1.74999,2632.3,2632.2,0.38]
[1729250233308,0.37999,2632.3,2632.2,1.37]
[1729250234004,0.38,2632.2,2632.1,0.77391]
[1729250234205,0.38,2632.2,2632.1,1.7639]
[1729250234614,0.38,2632.2,2632.1,2.14391]
[1729250234815,0.38,2632.2,2632.1,1.7639]
[1729250235213,0.38,2632.2,2632.1,2.14391]
[1729250235414,0.38,2632.2,2632.1,1.7639]
[1729250235706,0.79069,2632.3,2632.1,2.14391]
[1729250235911,0.79069,2632.3,2632.2,1.37]
[1729250238413,0.79069,2632.3,2632.2,1.75]
[1729250238608,0.4,2632.5,2632.3,0.37998]
[1729250238807,0.4,2632.5,2632.4,2.17027]
[1729250238808,0.37996,2632.5,2632.4,2.17027]
[1729250240314,0.37996,2632.5,2632.4,1.7903]
[1729250240619,0.37996,2632.5,2632.4,2.78253002]
[1729250241617,0.37996,2632.5,2632.4,3.16250002]
[1729250241822,0.8284,2632.8,2632.4,2.78253002]
[1729250242019,0.37995,2632.6,2632.5,1.74995]
[1729250242821,0.37995,2632.6,2632.5,1.37]
[1729250244809,0.37995,2632.6,2632.5,2.36223002]
[1729250245009,0.37995,2632.6,2632.5,1.37]
[1729250246020,0.37996,2632.5,2632.4,2.78253002]
[1729250246613,0.37996,2632.5,2632.4,3.16250002]
[1729250247618,0.37996,2632.5,2632.4,2.17027]
[1729250252925,1.37,2632.6,2632.5,0.37995]
[1729250252926,0.37995,2632.6,2632.5,0.37995]
[1729250253129,0.37995,2632.6,2632.5,1.74995]
[1729250253329,0.37993,2632.7,2632.6,0.37993]
[1729250253631,0.37993,2632.7,2632.6,2.15343]
[1729250254631,0.37993,2632.7,2632.6,2.15344]
[1729250255643,4.0462,2632.8,2632.7,0.37993]
[1729250255644,4.42613,2632.8,2632.7,0.37993]
[1729250255838,4.0462,2632.8,2632.6,1.7735]
[1729250256039,0.37993,2632.7,2632.6,2.15343]
[1729250259138,0.37993,2632.7,2632.6,1.37]
[1729250259738,0.37993,2632.7,2632.6,1.74994]
[1729250260348,0.37993,2632.7,2632.6,1.37]
[1729250263246,0.37993,2632.7,2632.6,1.74994]
[1729250263840,0.37993,2632.7,2632.6,1.37]
[1729250264443,0.37993,2632.7,2632.6,1.74994]
[1729250270767,0.37993,2632.8,2632.7,0.37992]
[1729250270967,0.37993,2632.7,2632.6,1.37]
[1729250271159,1.37,2632.7,2632.5,1.37]
[1729250271359,0.8405,2632.9,2632.5,1.37]
[1729250271360,1.19484,2632.6,2632.5,1.37]
[1729250271660,1.19484,2632.6,2632.5,1.74996]
[1729250271861,1.19484,2632.6,2632.5,1.37]
[1729250272062,1.19484,2632.6,2632.5,1.74996]
[1729250277970,1.19484,2632.6,2632.5,2.74219002]
[1729250278369,2.1849,2632.6,2632.4,2.36223002]
[1729250278563,1.37,2632.5,2632.3,0.99223002]
[1729250278868,0.37999,2632.3,2632.2,3.2078]
[1729250279073,1.74999,2632.3,2632.2,4.5778]
[1729250279373,2.14849,2632.3,2632.2,4.5778]
[1729250279869,0.38,2632.2,2632.1,1.37]
[1729250280064,0.7997,2632.2,2632.1,1.37]
[1729250280965,2.1697,2632.2,2632.1,1.37]
[1729250281361,0.38001,2632.1,2632.0,2.76333002]
[1729250281665,0.79761,2632.1,2632.0,6.89065634]
[1729250281862,0.79761,2632.1,2632.0,7.5058513]
[1729250282062,0.79761,2632.1,2632.0,4.2980513]
[1729250282258,0.79761,2632.1,2632.0,6.51062634]
[1729250282466,0.79761,2632.1,2632.0,7.88568388]
[1729250283168,0.38,2632.2,2632.1,0.38001]
[1729250283367,0.38,2632.2,2632.1,2.7449816]
[1729250285575,0.38,2632.2,2632.1,1.75001]
[1729250286677,0.38,2632.2,2632.1,1.37]
[1729250286871,0.7863,2632.2,2632.1,1.75001]
[1729250290870,0.38,2632.2,2632.1,1.75001]
[1729250291177,0.8344,2632.5,2632.2,0.38]
[1729250291378,0.8344,2632.5,2632.1,1.37]
[1729250291379,1.60166,2632.5,2632.4,1.37]
[1729250291872,3.2078,2632.6,2632.4,1.7587]
[1729250292078,0.37994,2632.6,2632.5,1.74995]
[1729250292275,0.3873,2632.7,2632.5,1.37]
[1729250292481,0.76724,2632.7,2632.6,0.37994]
[1729250292671,0.37994,2632.6,2632.5,2.7449216]
[1729250292872,0.37994,2632.6,2632.5,4.28561116]
[1729250293072,0.37994,2632.6,2632.5,2.7449216]
[1729250294981,0.37994,2632.6,2632.5,2.7449316]
[1729250295572,0.37994,2632.6,2632.5,2.3649716]
[1729250296174,1.74994,2632.6,2632.5,2.3649716]
[1729250296578,1.74994,2632.6,2632.5,0.9949716]
[1729250296771,1.37,2632.6,2632.4,0.9949716]
[1729250296979,0.37996,2632.5,2632.4,0.9949716]
[1729250297183,1.37,2632.6,2632.3,2.7449516]
[1729250297380,1.18637,2632.4,2632.3,2.7449516]
[1729250297578,1.18637,2632.4,2632.3,3.90642864]
[1729250297781,1.18637,2632.4,2632.3,0.9949716]
[1729250297782,2.55637,2632.4,2632.3,0.9949716]
[1729250298080,2.55637,2632.4,2632.2,0.9949716]
[1729250298081,0.37998,2632.3,2632.2,0.9949716]
[1729250298274,0.37998,2632.3,2632.0,2.85834503]
[1729250298275,1.7612,2632.3,2632.1,0.9949716]
[1729250298476,0.38,2632.2,2632.1,0.9949716]
[1729250298678,1.75,2632.2,2632.1,0.9949716]
[1729250298875,0.38001,2632.1,2632.0,2.3649716]
[1729250299075,0.78641,2632.1,2632.0,2.7450016]
[1729250300785,0.78641,2632.1,2632.0,1.7651]
[1729250300991,2.15641,2632.1,2632.0,1.7651]
[1729250302088,1.7764,2632.1,2631.9,1.37]
[1729250302285,0.38004,2632.0,2631.9,1.75004]
[1729250302680,0.38004,2631.9,2631.8,3.2078]
[1729250302880,0.38004,2631.9,2631.7,1.37]
[1729250302881,0.38006,2631.8,2631.7,1.37]
[1729250303189,2.15666,2631.8,2631.7,1.37]
[1729250303488,0.78666,2631.8,2631.7,1.37]
[1729250311591,0.38007,2631.7,2631.6,1.7842]
[1729250314693,0.38007,2631.7,2631.3,1.4244716]
[1729250314694,1.37,2631.7,2631.3,1.4244716]
[1729250315000,0.38011,2631.4,2631.3,2.69487503]
[1729250315298,0.38011,2631.4,2631.3,5.11061823]
[1729250315489,0.38011,2631.4,2631.3,3.74061823]
[1729250315689,0.38011,2631.4,2631.3,3.74054089]
[1729250315897,0.79531,2631.5,2631.4,0.38011]
[1729250316098,0.79531,2631.5,2631.4,1.75011]
[1729250316289,0.79531,2631.5,2631.4,1.37]
[1729250316898,0.79531,2631.5,2631.4,1.75011]
[1729250317491,0.79531,2631.5,2631.4,1.37]
[1729250317898,1.18261,2631.5,2631.4,1.37]
[1729250318603,1.18261,2631.5,2631.2,2.26418503]
[1729250318604,5.3803,2631.5,2631.2,0.99372838]
[1729250318805,1.75013,2631.3,2631.2,0.99372838]
[1729250319199,0.38014,2631.2,2631.1,1.37]
[1729250319405,1.20404,2631.2,2631.1,2.90722839]
[1729250319599,1.20404,2631.2,2631.1,3.90082156]
[1729250320502,1.20404,2631.2,2631.1,3.90071926]
[1729250320701,1.20404,2631.2,2631.1,2.36359317]
[1729250321107,1.20404,2631.2,2631.1,4.28078828]
[1729250321508,1.20404,2631.2,2631.1,2.74375317]
[1729250321708,1.20404,2631.2,2631.1,2.36359317]
[1729250322107,2.57404,2631.2,2631.1,3.90059979]
[1729250322306,2.57404,2631.2,2631.1,2.36359317]
[1729250322802,2.57404,2631.2,2631.1,1.37]
[1729250323111,0.38019,2630.9,2630.8,1.81299317]
[1729250323303,0.38019,2630.9,2630.8,3.17339317]
[1729250323503,1.75019,2630.9,2630.8,1.7836]
[1729250323697,2.17929,2630.9,2630.8,1.7836]
[1729250325109,5.0069,2630.9,2630.6,0.99359317]
[1729250325315,1.75022,2630.7,2630.6,0.99359317]
[1729250325518,1.37,2630.7,2630.5,1.79463317]
[1729250325719,0.38023,2630.6,2630.5,3.16463317]
[1729250326120,0.38023,2630.6,2630.5,2.78439317]